fUSD/lending_fUSD_20250814
["ID","MTS","AMOUNT","RATE_DAILY","PERIOD"]
[379115165,1755150640997,-290.0,0.00037172,2]
[379115166,1755150641006,-500.0,0.000372,5]
[379115167,1755150641020,-290.0,0.00037203,2]
[379115168,1755150641030,-1146.25099828,0.00037334,20]
[379115169,1755150641039,-1139.78680701,0.00037334,20]
[379115170,1755150641048,-150.0,0.00037359,2]
[379115171,1755150641058,-368.70407923,0.000374,30]
[379115172,1755150641067,-168.75,0.00037453,60]
[379115173,1755150641076,-150.54,0.00037493,60]
[379115174,1755150641086,-151.43,0.00037493,60]
[379115175,1755150641095,-154.9,0.00037493,60]
[379115176,1755150641107,-150.54,0.00037534,60]
[379115177,1755150641117,-168.75,0.00037553,60]
[379115178,1755150641126,-290.0,0.00037571,2]
[379115179,1755150641136,-150.54,0.00037593,60]
[379115180,1755150641146,-151.43,0.00037593,60]
[379115181,1755150641155,-154.91,0.00037593,60]
[379115182,1755150641165,-1000.0,0.00037595,2]
[379115183,1755150641175,-2500.0,0.00037595,2]
[379115184,1755150641184,-472.50347974,0.00037598,5]
[379115185,1755150641194,-168.75,0.00037653,60]
[379115186,1755150641203,-152.0,0.0003769,10]
[379115187,1755150641212,-151.43,0.00037693,60]
[379115188,1755150641222,-1000.0,0.00037748,5]
[379115189,1755150641232,-168.75,0.00037753,60]
[379115190,1755150641243,-290.0,0.00037759,2]
[379115191,1755150641252,-290.0,0.00037769,2]
[379115192,1755150641262,-151.43,0.00037793,60]
[379115193,1755150641272,-500.0,0.00037808,15]
[379115194,1755150641282,-150.79088083,0.00037808,15]
[379115195,1755150641292,-150.0,0.00037808,15]
[379115196,1755150641302,-150.000001,0.00037808,15]
[379115197,1755150641311,-500.0,0.00037808,15]
[379115198,1755150641321,-500.0,0.00037808,15]
[379115199,1755150641331,-204.4011667,0.00037808,15]
[379115200,1755150641340,-150.0,0.00037808,15]
[379115201,1755150641352,-150.0,0.00037808,15]
[379115202,1755150641362,-198.78042386,0.00037808,15]
[379115203,1755150641371,-152.26460721,0.00037808,15]
[379115204,1755150641380,-500.0,0.00037808,15]
[379115205,1755150641390,-150.0,0.00037808,15]
[379115206,1755150641399,-154.56212075,0.00037808,15]
[379115207,1755150641408,-154.71607106,0.00037808,15]
[379115208,1755150641417,-150.0,0.00037808,15]
[379115209,1755150641427,-150.0,0.00037808,2]
[379115210,1755150641436,-598.0,0.00037808,15]
[379115211,1755150641446,-150.0,0.00037808,15]
[379115212,1755150641456,-150.0,0.00037808,15]
[379115213,1755150641465,-150.0,0.00037808,2]
[379115214,1755150641474,-150.0,0.00037808,15]
[379115215,1755150641483,-168.77,0.00037853,60]
[379115216,1755150641492,-151.46,0.00037893,60]
[379115217,1755150641501,-513.0,0.00037929,18]
[379115218,1755150641511,-290.0,0.00037967,7]
[379115219,1755150641520,-1115.157653,0.00037972,2]
[379115220,1755150641529,-290.0,0.00037975,2]
[379115221,1755150641539,-153.0,0.00038,120]
[379115222,1755150641549,-152.0,0.00038,120]
[379115223,1755150641562,-1000.0,0.00038,120]
[379115224,1755150641571,-380.0,0.00038,2]
[379115225,1755150641581,-776.0,0.00038,2]
[379115226,1755150641591,-616.48,0.00038072,2]
[379115227,1755150641601,-500.0,0.00038082,15]
[379115228,1755150641612,-150.0,0.00038082,15]
[379115229,1755150641621,-500.0,0.00038082,15]
[379115230,1755150641631,-500.0,0.00038082,15]
[379115231,1755150641641,-150.0,0.00038082,15]
[379115232,1755150641651,-151.88359434,0.00038082,15]
[379115233,1755150641660,-500.0,0.00038082,15]
[379115234,1755150641669,-150.0,0.00038082,15]
[379115235,1755150641680,-150.0,0.00038082,15]
[379115236,1755150641689,-598.0,0.00038082,15]
[379115237,1755150641699,-150.0,0.00038082,15]
[379115238,1755150641708,-150.0,0.00038082,15]
[379115239,1755150641718,-150.0,0.00038082,2]
[379115240,1755150641728,-150.0,0.00038082,15]
[379115241,1755150641738,-291.0,0.00038106,2]
[379115242,1755150641748,-290.0,0.00038136,2]
[379115243,1755150641758,-290.0,0.00038214,120]
[379115244,1755150641767,-152.0,0.00038325,11]
[379115245,1755150641777,-290.0,0.00038333,2]
[379115246,1755150641787,-500.0,0.00038356,15]
[379115247,1755150641797,-150.0,0.00038356,15]
[379115248,1755150641808,-506.68766964,0.00038356,15]
[379115249,1755150641817,-500.0,0.00038356,15]
[379115250,1755150641826,-150.0,0.00038356,15]
[379115251,1755150641835,-500.0,0.00038356,15]
[379115252,1755150641845,-287.01293582,0.00038356,15]
[379115253,1755150641856,-150.0,0.00038356,15]
[379115254,1755150641866,-598.0,0.00038356,15]
[379115255,1755150641875,-150.0,0.00038356,15]
[379115256,1755150641885,-150.0,0.00038356,2]
[379115257,1755150641894,-150.0,0.00038356,15]
[379115258,1755150641903,-214.62528094,0.00038356,2]
[379115259,1755150641914,-3414.33089546,0.000384,120]
[379115260,1755150641924,-2000.0,0.000384,2]
[379115261,1755150641933,-290.0,0.00038456,2]
[379115262,1755150641942,-810.0,0.00038466,2]
[379115263,1755150641951,-3369.0,0.00038466,2]
[379115264,1755150641961,-290.0,0.00038483,2]
[379115265,1755150641970,-568.0,0.000385,2]
[379115266,1755150641979,-151.7213497,0.0003863,15]
[379115267,1755150641989,-150.0,0.0003863,15]
[379115268,1755150641998,-500.0,0.0003863,15]
[379115269,1755150642007,-200.60775032,0.0003863,15]
[379115270,1755150642017,-268.11588119,0.0003863,15]
[379115271,1755150642026,-150.0,0.0003863,15]
[379115272,1755150642035,-598.0,0.0003863,15]
[379115273,1755150642044,-150.0,0.0003863,15]
[379115274,1755150642054,-150.0,0.0003863,2]
[379115275,1755150642064,-150.0,0.0003863,15]
[379115276,1755150642074,-3972.04,0.00038678,30]
[379115277,1755150642084,-291.0,0.00038704,2]
[379115278,1755150642099,-360.13,0.00038713,2]
[379115279,1755150642111,-394.3,0.00038713,2]
[379115280,1755150642122,-360.13,0.00038713,2]
[379115281,1755150642133,-360.13,0.00038713,2]
[379115282,1755150642142,-150.0,0.00038729,2]
[379115283,1755150642152,-150.0,0.00038761,2]
[379115284,1755150642162,-150.0,0.00038761,2]
[379115285,1755150642172,-538.69,0.00038761,2]
[379115286,1755150642182,-538.69,0.00038761,2]
[379115287,1755150642191,-296.0,0.00038763,2]
[379115288,1755150642200,-218.855872,0.00038884,120]
[379115289,1755150642209,-513.464952,0.00038884,120]
[379115290,1755150642219,-253.47733551,0.00038904,15]
[379115291,1755150642228,-350.0,0.00038904,15]
[379115292,1755150642237,-160.44149239,0.00038904,15]
[379115293,1755150642246,-598.0,0.00038904,15]
[379115294,1755150642256,-150.0,0.00038904,15]
[379115295,1755150642266,-150.0,0.00038904,2]
[379115296,1755150642275,-150.0,0.00038904,15]
[379115297,1755150642285,-152.0,0.0003896,12]
[379115298,1755150642294,-150.0,0.00038999,2]
[379115299,1755150642303,-400.0,0.00038999,120]
[379115300,1755150642313,-1000.0,0.00038999,120]
[379115301,1755150642322,-200.0,0.00039,14]
[379115302,1755150642332,-151.0,0.00039,30]
[379115303,1755150642341,-1065.117306,0.00039,30]
[379115304,1755150642352,-4155.0,0.00039,2]
[379115305,1755150642361,-1065.117306,0.00039,30]
[379115306,1755150642371,-220.873943,0.00039,30]
[379115307,1755150642381,-220.873943,0.00039,30]
[379115308,1755150642391,-311.140994,0.00039,30]
[379115309,1755150642400,-311.140994,0.00039,30]
[379115310,1755150642410,-311.140994,0.00039,30]
[379115311,1755150642420,-311.140994,0.00039,30]
[379115312,1755150642429,-1000.0,0.00039,120]
[379115313,1755150642439,-613.5,0.00039046,7]
[379115314,1755150642449,-500.0,0.000391,14]
[379115315,1755150642458,-598.0,0.00039178,15]
[379115316,1755150642468,-250.0,0.00039178,15]
[379115317,1755150642478,-250.0,0.00039178,2]
[379115318,1755150642487,-250.0,0.00039178,15]
[379115319,1755150642497,-800.0,0.000392,14]
[379115320,1755150642507,-1100.0,0.000393,14]
[379115321,1755150642516,-1000.0,0.00039343,2]
[379115322,1755150642526,-1400.0,0.000394,14]
[379115323,1755150642536,-165.34433773,0.000394,2]
[379115324,1755150642546,-290.0,0.00039406,2]
[379115325,1755150642559,-291.0,0.00039433,120]
[379115326,1755150642568,-598.0,0.00039452,15]
[379115327,1755150642578,-505.64091826,0.00039473,5]
[379115328,1755150642587,-12967.7409602,0.00039474,4]
[379115329,1755150642598,-200.0,0.000395,14]
[379115330,1755150642608,-360.13,0.00039535,2]
[379115331,1755150642617,-713.04,0.00039535,2]
[379115332,1755150642627,-165.84,0.00039535,2]
[379115334,1755150642636,-165.84,0.00039535,2]
[379115335,1755150642647,-538.69,0.00039535,2]
[379115336,1755150642656,-538.69,0.00039535,2]
[379115337,1755150642665,-331.53,0.00039535,2]
[379115338,1755150642674,-538.27,0.00039535,2]
[379115339,1755150642684,-165.84,0.00039535,2]
[379115340,1755150642693,-165.84,0.00039535,2]
[379115341,1755150642703,-6483.87048011,0.00039538,4]
[379115342,1755150642712,-6483.87048011,0.00039573,4]
[379115343,1755150642721,-538.69,0.00039583,2]
[379115344,1755150642731,-538.69,0.00039583,2]
[379115345,1755150642740,-1068.5,0.00039583,2]
[379115346,1755150642749,-1077.38,0.00039583,2]
[379115347,1755150642758,-331.23,0.00039583,2]
[379115348,1755150642768,-538.69,0.00039583,2]
[379115349,1755150642777,-331.63,0.00039583,2]
[379115350,1755150642787,-165.84,0.00039583,2]
[379115351,1755150642796,-331.63,0.00039583,2]
[379115352,1755150642805,-165.84,0.00039583,2]
[379115353,1755150642815,-165.84,0.00039583,2]
[379115354,1755150642824,-1071.13,0.00039583,2]
[379115355,1755150642835,-331.68,0.00039583,2]
[379115356,1755150642844,-785.02,0.00039583,2]
[379115358,1755150642855,-165.84,0.00039583,2]
[379115359,1755150642865,-538.69,0.00039583,2]
[379115360,1755150642874,-165.84,0.00039583,2]
[379115361,1755150642884,-538.69,0.00039583,2]
[379115362,1755150642893,-165.84,0.00039583,2]
[379115363,1755150642903,-165.84,0.00039583,2]
[379115364,1755150642914,-538.69,0.00039583,2]
[379115365,1755150642923,-165.84,0.00039583,2]
[379115366,1755150642932,-538.69,0.00039583,2]
[379115367,1755150642941,-538.69,0.00039583,2]
[379115368,1755150642951,-538.69,0.00039583,2]
[379115369,1755150642960,-331.63,0.00039583,2]
[379115370,1755150642969,-538.69,0.00039583,2]
[379115371,1755150642979,-165.84,0.00039583,2]
[379115372,1755150642988,-538.69,0.00039583,2]
[379115373,1755150642998,-1077.24,0.00039583,2]
[379115374,1755150643007,-165.84,0.00039583,2]
[379115375,1755150643018,-165.84,0.00039583,2]
[379115376,1755150643258,-538.69,0.00039583,2]
[379115377,1755150643269,-165.84,0.00039583,2]
[379115378,1755150643280,-538.69,0.00039583,2]
[379115379,1755150643291,-165.84,0.00039583,2]
[379115380,1755150643301,-538.69,0.00039583,2]
[379115381,1755150643311,-165.84,0.00039583,2]
[379115382,1755150643321,-165.84,0.00039583,2]
[379115383,1755150643331,-538.69,0.00039583,2]
[379115384,1755150643342,-538.69,0.00039583,2]
[379115385,1755150643354,-538.69,0.00039583,2]
[379115386,1755150643364,-296.49,0.00039583,2]
[379115387,1755150643374,-152.0,0.00039595,13]
[379115388,1755150643383,-200.0,0.000396,14]
[379115389,1755150643394,-6483.87048011,0.00039635,4]
[379115390,1755150643404,-5000.0,0.00039645,60]
[379115391,1755150643415,-174.06415847,0.00039664,15]
[379115392,1755150643425,-557.0,0.0003968,2]
[379115393,1755150643435,-200.0,0.000397,14]
[379115394,1755150643444,-598.0,0.00039726,15]
[379115395,1755150643454,-164.747116,0.00039726,15]
[379115396,1755150643464,-1492.80005579,0.00039732,12]
[379115397,1755150643474,-165.34433771,0.00039747,2]
[379115398,1755150643484,-6483.87048011,0.00039764,4]
[379115399,1755150643494,-324.8174,0.000398,2]
[379115400,1755150643504,-200.0,0.000398,14]
[379115401,1755150643514,-150.0,0.00039808,7]
[379115402,1755150643523,-12967.7409602,0.00039816,4]
[379115403,1755150643532,-16103.8393,0.00039826,120]
[379115404,1755150643542,-151.0,0.00039834,7]
[379115405,1755150643552,-151.0,0.00039834,7]
[379115406,1755150643565,-151.0,0.00039834,7]
[379115407,1755150643574,-151.0,0.00039834,7]
[379115408,1755150643584,-151.0,0.00039834,7]
[379115409,1755150643594,-151.0,0.00039834,7]
[379115410,1755150643606,-151.0,0.00039834,7]
[379115411,1755150643616,-151.0,0.00039834,7]
[379115412,1755150643625,-151.0,0.00039834,7]
[379115413,1755150643637,-151.0,0.00039834,7]
[379115414,1755150643648,-151.0,0.00039834,7]
[379115415,1755150643657,-6483.87048011,0.00039883,4]
[379115416,1755150643666,-2355.75,0.00039893,23]
[379115417,1755150643678,-150.0,0.00039894,7]
[379115418,1755150643688,-2559.68717565,0.000399,120]
[379115419,1755150643698,-1000.0,0.000399,120]
[379115420,1755150643708,-800.0,0.000399,120]
[379115421,1755150643718,-1500.0,0.000399,120]
[379115422,1755150643729,-1100.0,0.000399,14]
[379115423,1755150643739,-6483.87048011,0.00039923,4]
[379115424,1755150643748,-350.0,0.0003996,120]
[379115425,1755150643758,-6483.87048011,0.00039963,4]
[379115426,1755150643768,-1800.0,0.0003997,2]
[379115427,1755150643777,-1000.0,0.0003997,2]
[379115428,1755150643787,-159.86769431,0.00039973,5]
[379115429,1755150643796,-64838.7048011,0.0003999,4]
[379115430,1755150643806,-598.0,0.0004,15]
[379115431,1755150643816,-188.5472814,0.0004,120]
[379115432,1755150643826,-217.33317711,0.0004,120]
[379115439,1755150643928,-505.60542929,0.0004,120]
[379115445,1755150643983,-40.43327136,0.0004,120]
[379115449,1755150644007,-33.33969144,0.0004,120]
[379115451,1755150644016,-151.0,0.0004,30]
[379115453,1755150644026,-151.0,0.0004,30]
[379115455,1755150644035,-301.04618776,0.0004,30]
[379115457,1755150644165,-133.57531845,0.0004,30]
[379115458,1755150644177,-40.76517779,0.0004,30]
[379115459,1755150644187,-287.07483893,0.0004,30]
[379115460,1755150644198,-188.31184507,0.0004,30]
[379115461,1755150644208,-284.985035,0.0004,30]
[379115462,1755150644217,-28.09968051,0.0004,30]
[379115463,1755150644229,-256.88535449,0.0004,30]
[379115464,1755150644239,-391.241323,0.0004,30]
[379115465,1755150644248,-206.80937763,0.0004,30]
[379115466,1755150644264,-184.43194537,0.0004,30]
[379115467,1755150644275,-82.39005463,0.0004,30]
[379115468,1755150645735,-229.83965548,0.000372,120]
[379115470,1755150645744,-538.69,0.00038761,2]
[379115471,1755150645754,-657.21751161,0.00039483,120]
[379115472,1755150645765,-597.50578839,0.00039483,120]
[379115473,1755150645774,-68.60994537,0.0004,30]
[379115474,1755150645783,-151.0,0.0004,30]
[379115475,1755150645793,-152.230629,0.0004,30]
[379115476,1755150645802,-152.230629,0.0004,30]
[379115477,1755150645811,-307.0,0.0004,120]
[379115478,1755150645821,-151.0,0.0004,30]
[379115479,1755150645830,-151.0,0.0004,30]
[379115480,1755150645839,-151.0,0.0004,30]
[379115481,1755150645848,-151.0,0.0004,30]
[379115482,1755150645858,-151.0,0.0004,30]
[379115483,1755150645868,-151.0,0.0004,30]
[379115484,1755150645877,-151.0,0.0004,30]
[379115485,1755150645886,-151.0,0.0004,30]
[379115486,1755150645896,-166.934702,0.0004,30]
[379115487,1755150645905,-166.934702,0.0004,30]
[379115488,1755150645914,-151.0,0.0004,30]
[379115489,1755150645923,-306.97218,0.0004,30]
[379115490,1755150645933,-306.97218,0.0004,30]
[379115491,1755150645942,-151.0,0.0004,30]
[379115492,1755150645952,-17.22506848,0.0004,30]
[379115493,1755150645963,-195.86325552,0.0004,30]
[379115494,1755150645972,-259.578238,0.0004,30]
[379115495,1755150645982,-749.204938,0.0004,30]
[379115496,1755150645991,-749.204938,0.0004,30]
[379115497,1755150646000,-417.712432,0.0004,30]
[379115498,1755150646009,-417.712432,0.0004,30]
[379115499,1755150646018,-360.0578449,0.0004,30]
[379115595,1755150649834,-151.0,0.00037,7]
[379115596,1755150649844,-165.84,0.00039535,2]
[379115597,1755150649854,-295.28,0.00039545,2]
[379115598,1755150649869,-2279.56555384,0.00039545,2]
[379115599,1755150649880,-3604.39077181,0.00039545,2]
[379115600,1755150649890,-150.0,0.00039733,2]
[379115601,1755150649899,-150.0,0.00039738,2]
[379115602,1755150649909,-150.0,0.00039744,2]
[379115603,1755150649918,-150.0,0.00039747,2]
[379115604,1755150649927,-150.0,0.00039749,2]
[379115605,1755150649936,-150.0,0.00039786,7]
[379115606,1755150649945,-150.0,0.00039788,2]
[379115607,1755150649954,-150.0,0.0003979,2]
[379115608,1755150649963,-150.0,0.00039799,2]
[379115609,1755150649973,-150.0,0.00039818,2]
[379115610,1755150649982,-23.34123081,0.00039823,2]
[379115611,1755150650277,-151.0,0.00037,7]
[379115612,1755150650287,-126.65876919,0.00039823,2]
[379115613,1755150650296,-150.0,0.00039824,2]
[379115614,1755150650305,-150.0,0.00039832,2]
[379115615,1755150650315,-150.0,0.00039842,2]
[379115616,1755150650324,-150.0,0.00039843,2]
[379115617,1755150650333,-221.6342693,0.00039846,2]
[379115618,1755150650343,-150.0,0.00039849,2]
[379115619,1755150650352,-150.0,0.00039852,2]
[379115620,1755150650361,-150.0,0.00039865,2]
[379115621,1755150650371,-150.0,0.00039884,2]
[379115622,1755150650380,-150.0,0.00039885,2]
[379115623,1755150650390,-150.0,0.00039901,2]
[379115624,1755150650399,-150.0,0.00039943,2]
[379115625,1755150650409,-150.0,0.00039951,2]
[379115626,1755150650419,-150.0,0.00039963,2]
[379115627,1755150650428,-150.0,0.0003997,2]
[379115628,1755150650438,-1559.2034441,0.0004,30]
[379115629,1755150650448,-151.0,0.0004,30]
[379115630,1755150650457,-1919.261289,0.0004,30]
[379115631,1755150650467,-151.0,0.0004,30]
[379115632,1755150650476,-151.0,0.0004,30]
[379115633,1755150650485,-349.641065,0.0004,30]
[379115634,1755150650494,-18.53603294,0.0004,30]
[379115635,1755150650506,-331.10503206,0.0004,30]
[379115636,1755150650516,-575.65836825,0.0004,30]
[379115637,1755150650527,-518.17428875,0.0004,30]
[379115638,1755150650536,-659.962784,0.0004,30]
[379115639,1755150650546,-1061.15108189,0.0004,30]
[379115642,1755150744618,156.41,0.00013699,2]
[379115647,1755151108871,-1500.0,0.00021,5]
[379115667,1755151148453,-300.0,0.00028169,120]
[379115668,1755151148494,-160.67219304,0.00029539,120]
[379115742,1755151204840,218.02,0.00027051,120]
[379115743,1755151222363,150.0,0.000241,30]
[379115747,1755151391239,1500.0,0.00025477,120]
[379115751,1755151541738,163.27,0.00025143,120]
[379115755,1755151644289,-202.1863,0.00019999,2]
[379115756,1755151644311,-528.0,0.00019999,2]
[379115757,1755151644332,-300.0,0.00019999,2]
[379115758,1755151644353,-471.47856389,0.0002,7]
[379115759,1755151735017,397.0,0.0003013,120]
[379115760,1755151762096,-1504.53050848,0.0002,7]
[379115762,1755151782477,810.98599804,0.0003013,120]
[379115781,1755151832034,-1200.0,0.00019999,2]
[379115782,1755151832044,-1417.63688377,0.0002,7]
[379115783,1755151832319,-660.03990067,0.0002,7]
[379115784,1755151832331,-1495.67499989,0.0002,7]
[379115785,1755151833710,-1217.216,0.0002,7]
[379115786,1755151836802,-5487.4231433,0.0002,7]
[379115787,1755151836813,-186.27234785,0.000201,2]
[379115788,1755151836823,-8146.42274086,0.000201,2]
[379115789,1755151836832,-250.0,0.000202,2]
[379115790,1755151836842,-183.11,0.00020764,2]
[379115791,1755151836851,-5877.58036078,0.00021,5]
[379115792,1755151836861,-157.33406241,0.00021,2]
[379115793,1755151836871,-1074.0,0.00021881,2]
[379115794,1755151836880,-156.41,0.00021918,2]
[379115796,1755151836889,-150.56278338,0.00021918,2]
[379115798,1755151836899,-1000.0,0.00021999,3]
[379115800,1755151836913,-300.0,0.00021999,2]
[379115802,1755151836922,-1000.0,0.00021999,3]
[379115804,1755151836931,-300.0,0.00022,2]
[379115805,1755151836941,-300.0,0.00022,2]
[379115806,1755151836953,-1000.0,0.00022,3]
[379115807,1755151836962,-250.0,0.00022,2]
[379115808,1755151836971,-300.0,0.00022,2]
[379115809,1755151836982,-162.45,0.00022497,2]
[379115810,1755151836991,-524.6,0.00024044,2]
[379115811,1755151837000,-150.99,0.00024174,2]
[379115812,1755151837009,-8753.59,0.00024174,2]
[379115813,1755151837018,-11318.02,0.00024174,2]
[379115814,1755151837027,-294.26,0.00024174,2]
[379115815,1755151837037,-299.99,0.00024174,7]
[379115816,1755151837046,-854.92,0.00024174,2]
[379115817,1755151837057,-213.72,0.00024532,2]
[379115818,1755151837066,-2669.25,0.00024742,2]
[379115819,1755151837076,-494.0,0.00024784,2]
[379115820,1755151837085,-200.0,0.00024785,2]
[379115821,1755151837094,-151.0,0.00024785,2]
[379115822,1755151837104,-151.0,0.00024785,2]
[379115823,1755151837113,-151.0,0.00024785,2]
[379115824,1755151837122,-151.0,0.00024785,2]
[379115825,1755151837131,-151.0,0.00024785,2]
[379115826,1755151837141,-151.0,0.00024785,2]
[379115827,1755151837150,-159.20724504,0.00024785,2]
[379115828,1755151837160,-500.0,0.00024785,2]
[379115829,1755151837170,-51116.13732361,0.000248,2]
[379115830,1755151837179,-500.0,0.0002484,2]
[379115831,1755151837188,-500.0,0.00024895,2]
[379115832,1755151837197,-3931.02299677,0.000249,2]
[379115833,1755151837206,-458.13769775,0.00024944,2]
[379115834,1755151837216,-160.0,0.00024944,2]
[379115835,1755151837225,-500.0,0.0002495,2]
[379115836,1755151837235,-1145.30462272,0.00024967,5]
[379115837,1755151837244,-1140.73318257,0.00024967,5]
[379115838,1755151837254,-150.0,0.00025,30]
[379115839,1755151837263,-500.0,0.00025005,2]
[379115840,1755151837273,-2509.85,0.00025019,2]
[379115841,1755151837282,-500.0,0.0002506,2]
[379115842,1755151837292,-170.64,0.000251,2]
[379115843,1755151837302,-500.0,0.00025115,2]
[379115844,1755151837313,-5000.0,0.00025129,2]
[379115845,1755151837322,-381.12,0.00025165,2]
[379115846,1755151837332,-500.0,0.0002517,2]
[379115847,1755151837342,-336.41,0.0002517,30]
[379115848,1755151837351,-150.0,0.00025219,2]
[379115849,1755151837361,-500.0,0.00025225,2]
[379115850,1755151837370,-250.0,0.00025257,2]
[379115851,1755151837379,-500.0,0.0002528,2]
[379115852,1755151837388,-500.0,0.00025335,2]
[379115853,1755151837398,-167.44397346,0.00025377,2]
[379115854,1755151837409,-500.0,0.00025377,2]
[379115855,1755151837419,-152.7741815,0.00025377,2]
[379115856,1755151837428,-200.82740792,0.00025377,2]
[379115857,1755151837437,-15777.86460881,0.00025378,2]
[379115858,1755151837733,-435.15,0.00025464,2]
[379115859,1755151837751,-435.15,0.00025478,2]
[379115860,1755151837763,-435.15,0.00025491,2]
[379115861,1755151837772,-435.15,0.00025504,2]
[379115862,1755151837782,-435.15,0.00025518,2]
[379115863,1755151837791,-435.15,0.00025531,2]
[379115864,1755151837800,-435.15,0.00025545,2]
[379115865,1755151837811,-435.15,0.00025558,2]
[379115866,1755151837821,-435.15,0.00025571,2]
[379115867,1755151837830,-435.15,0.00025585,2]
[379115868,1755151837841,-435.15,0.00025598,2]
[379115869,1755151837850,-435.15,0.00025612,2]
[379115870,1755151837860,-435.15,0.00025625,2]
[379115872,1755151837870,-435.15,0.00025638,2]
[379115873,1755151837880,-435.15,0.00025652,2]
[379115874,1755151837890,-435.15,0.00025665,2]
[379115875,1755151837900,-435.15,0.00025679,2]
[379115876,1755151837914,-435.15,0.00025692,2]
[379115877,1755151837923,-435.15,0.00025705,2]
[379115878,1755151837934,-435.15,0.00025719,2]
[379115879,1755151837944,-238.24,0.000258,2]
[379115880,1755151837957,-169.36,0.00025828,2]
[379115881,1755151837966,-261.52,0.00026114,2]
[379115882,1755151837975,-1000.0,0.00026192,2]
[379115883,1755151837986,-206.03,0.0002622,2]
[379115884,1755151837995,-500.0,0.00026367,2]
[379115885,1755151838005,-500.0,0.00026367,2]
[379115886,1755151838015,-500.0,0.00026367,2]
[379115887,1755151838024,-500.0,0.00026367,2]
[379115888,1755151838034,-269.96187325,0.00026367,2]
[379115889,1755151838043,-200.0,0.00026585,2]
[379115890,1755151838052,-844.08,0.00026603,2]
[379115891,1755151838063,-1000.0,0.00026915,2]
[379115892,1755151838073,-1002.2932747,0.00026915,2]
[379115893,1755151838082,-15777.86460878,0.00027019,2]
[379115894,1755151838092,-513.0,0.00027137,2]
[379115895,1755151838101,-1000.0,0.00027397,7]
[379115896,1755151838111,-8622.06,0.00027397,15]
[379115897,1755151838120,-165.70210688,0.000274,5]
[379115898,1755151838130,-500.0,0.000274,5]
[379115899,1755151838139,-499.64957932,0.000274,5]
[379115900,1755151838149,-152.67998888,0.000274,2]
[379115901,1755151838158,-152.67998887,0.000274,2]
[379115902,1755151838168,-152.67998887,0.000274,2]
[379115903,1755151838177,-152.67998887,0.000274,2]
[379115904,1755151838186,-152.67998887,0.000274,2]
[379115905,1755151838195,-152.67998887,0.000274,2]
[379115906,1755151838205,-152.67998887,0.000274,2]
[379115907,1755151838214,-152.67998887,0.000274,2]
[379115908,1755151838224,-152.67998887,0.000274,2]
[379115909,1755151838233,-152.67998887,0.000274,2]
[379115910,1755151838242,-152.67998887,0.000274,2]
[379115911,1755151838253,-152.67998887,0.000274,2]
[379115912,1755151838262,-152.67998887,0.000274,2]